bitfinex-derivatives/quotes_BTCF0:USTF0_20241128
["timestamp","ask_amount","ask_price","bid_price","bid_amount"]
[1732834607615,0.052272,95639.0,95638.0,0.049271]
[1732834609419,0.052272,95639.0,95638.0,0.003]
[1732834609813,0.180232,95639.0,95638.0,0.003]
[1732834611623,0.180232,95639.0,95638.0,0.055272]
[1732834619417,0.180232,95639.0,95638.0,0.003]
[1732834622620,0.180232,95639.0,95625.0,0.049279]
[1732834622825,0.052279,95626.0,95625.0,0.049279]
[1732834623826,0.052279,95626.0,95625.0,0.055279]
[1732834624020,0.053279,95626.0,95625.0,0.056279]
[1732834625034,0.053279,95626.0,95625.0,0.007]
[1732834625234,0.053279,95626.0,95625.0,0.001]
[1732834625421,0.053279,95626.0,95625.0,0.058279]
[1732834626231,0.053279,95626.0,95625.0,0.006]
[1732834626822,0.053279,95626.0,95625.0,0.058279]
[1732834636733,0.053279,95626.0,95625.0,0.056279]
[1732834637127,0.053279,95626.0,95625.0,0.055279]
[1732834637636,0.053279,95626.0,95625.0,0.049279]
[1732834647242,0.001,95626.0,95625.0,0.049279]
[1732834647549,0.053279,95626.0,95625.0,0.049279]
[1732834647844,0.001,95626.0,95625.0,0.049279]
[1732834648646,0.053279,95626.0,95625.0,0.049279]
[1732834649040,0.001,95626.0,95625.0,0.049279]
[1732834651440,0.053279,95626.0,95625.0,0.049279]
[1732834652147,0.053279,95626.0,95625.0,0.055279]
[1732834652852,0.053279,95626.0,95625.0,0.049279]
[1732834657047,0.001,95626.0,95625.0,0.049279]
[1732834666758,0.001,95626.0,95625.0,0.144379]
[1732834667756,0.001,95626.0,95625.0,0.138379]
[1732834677156,0.001,95626.0,95625.0,0.043279]
[1732834680463,0.001,95626.0,95625.0,0.404079]
[1732834682567,0.001,95626.0,95625.0,0.398079]
[1732834686669,0.001,95626.0,95625.0,0.758879]
[1732834691774,0.001,95626.0,95625.0,1.072599]
[1732834692278,0.001,95626.0,95625.0,1.204839]
[1732834695289,0.001,95626.0,95625.0,1.39055183]
[1732834696186,0.001,95626.0,95625.0,1.204839]
[1732834696797,0.001,95626.0,95625.0,1.45248205]
[1732834697600,0.0306,95644.0,95643.0,0.052269]
[1732834697794,0.0306,95644.0,95643.0,0.413069]
[1732834698798,0.0376,95644.0,95643.0,0.413069]
[1732834711094,0.007,95644.0,95643.0,0.413069]
[1732834712608,0.007,95644.0,95643.0,0.407069]
[1732834719321,9.957e-05,95647.0,95643.0,0.407069]
[1732834719322,0.052238,95702.0,95643.0,0.720749]
[1732834719503,0.0329,95670.0,95663.0,0.052259]
[1732834719701,0.0329,95670.0,95669.0,0.052255]
[1732834720003,0.0329,95670.0,95669.0,0.413055]
[1732834720515,0.00011216,95670.0,95669.0,0.413055]
[1732834722114,0.00911216,95670.0,95669.0,0.414055]
[1732834722711,0.01811216,95670.0,95669.0,0.415055]
[1732834727611,0.01811216,95670.0,95669.0,0.409055]
[1732834727808,0.01811216,95670.0,95669.0,0.42411796]
[1732834728206,0.01811216,95670.0,95669.0,0.73767796]
[1732834728718,0.01811216,95670.0,95669.0,0.86787796]
[1732834729213,0.01811216,95670.0,95669.0,0.55431796]
[1732834729810,0.00911216,95670.0,95669.0,0.55331796]
[1732834730002,0.00911216,95670.0,95669.0,0.55731796]
[1732834730522,0.00711216,95670.0,95669.0,0.55731796]
[1732834731305,0.00011216,95670.0,95669.0,0.55831796]
[1732834734519,0.00011216,95670.0,95669.0,0.87187796]
[1732834734705,0.145741,95696.0,95691.0,0.052243]
[1732834734906,0.145741,95696.0,95695.0,0.052241]
[1732834735608,0.1458294,95696.0,95695.0,0.052241]
[1732834735923,0.1612594,95696.0,95695.0,0.052241]
[1732834736111,0.1682594,95696.0,95695.0,0.052241]
[1732834736619,0.1702594,95696.0,95695.0,0.053241]
[1732834737011,0.1180184,95696.0,95695.0,0.053241]
[1732834737917,0.1220184,95696.0,95695.0,0.053241]
[1732834738522,0.1180184,95696.0,95695.0,0.053241]
[1732834738716,0.1180184,95696.0,95695.0,0.414041]
[1732834738717,0.0140884,95696.0,95695.0,0.414041]
[1732834739931,0.0140884,95696.0,95695.0,0.544241]
[1732834741025,0.0140884,95696.0,95695.0,0.857721]
[1732834741225,0.0623,95714.0,95713.0,0.052231]
[1732834742319,0.07140755,95714.0,95713.0,0.053231]
[1732834742614,0.08040755,95714.0,95713.0,0.048231]
[1732834744320,0.01810755,95714.0,95713.0,0.048231]
[1732834745021,0.01010755,95714.0,95713.0,0.047231]
[1732834745827,0.00910755,95714.0,95713.0,0.047231]
[1732834746124,0.00210755,95714.0,95713.0,0.046231]
[1732834748828,0.00210755,95714.0,95713.0,0.177151]
[1732834749036,0.00210755,95714.0,95713.0,0.046231]
[1732834749235,0.00210755,95714.0,95713.0,0.177151]
[1732834750630,0.0321,95723.0,95722.0,0.052226]
[1732834750830,0.0321,95723.0,95722.0,0.413026]
[1732834751629,0.03220056,95723.0,95722.0,0.413026]
[1732834751832,0.03520056,95723.0,95722.0,0.413026]
[1732834752231,0.04120056,95723.0,95722.0,0.414026]
[1732834752628,0.09342656,95723.0,95722.0,0.414026]
[1732834753037,0.04120056,95723.0,95722.0,0.414026]
[1732834757742,0.09342656,95723.0,95722.0,0.408026]
[1732834759430,0.04120056,95723.0,95722.0,0.408026]
[1732834760942,0.09342656,95723.0,95722.0,0.408026]
[1732834761238,0.04120056,95723.0,95722.0,0.408026]
[1732834761636,0.53774656,95723.0,95722.0,0.3618]
[1732834761829,0.53774656,95723.0,95722.0,0.001]
[1732834762231,0.48552056,95723.0,95722.0,0.001]
[1732834762433,0.53774656,95723.0,95722.0,0.001]
[1732834763538,0.17212056,95723.0,95722.0,0.001]
[1732834766036,0.48552056,95723.0,95722.0,0.001]
[1732834766238,0.17212056,95723.0,95722.0,0.001]
[1732834766741,0.22434656,95723.0,95722.0,0.001]
[1732834767543,0.22434656,95723.0,95722.0,0.053226]
[1732834767842,0.17212056,95723.0,95722.0,0.053226]
[1732834772633,0.17212056,95723.0,95722.0,0.047226]
[1732834773431,0.04120056,95723.0,95722.0,0.047226]
[1732834773636,0.17136056,95723.0,95722.0,0.047226]
[1732834774947,0.04120056,95723.0,95722.0,0.047226]
[1732834775140,0.17136056,95723.0,95722.0,0.047226]
[1732834776043,0.13926056,95723.0,95722.0,0.047226]
[1732834777350,0.00910056,95723.0,95722.0,0.047226]
[1732834780742,0.00910056,95723.0,95722.0,0.408026]
[1732834787739,0.00910056,95723.0,95722.0,0.402026]
[1732834800146,0.00910056,95723.0,95722.0,0.041226]
[1732834800650,5.6e-07,95723.0,95722.0,0.041226]
[1732834801155,5.6e-07,95723.0,95722.0,0.484786]
[1732834801355,5.6e-07,95723.0,95722.0,0.041226]
[1732834801554,5.6e-07,95723.0,95722.0,0.171386]
[1732834801758,0.00010961,95723.0,95722.0,0.171386]
[1732834802460,0.00010961,95723.0,95722.0,0.041226]
[1732834802663,0.00010961,95723.0,95722.0,0.035226]
[1732834802664,0.36090961,95723.0,95722.0,0.035226]
[1732834802963,0.68969777,95723.0,95695.0,0.18667614]
[1732834803154,0.3608,95705.0,95704.0,0.052236]
[1732834803458,0.36150962,95723.0,95722.0,0.052226]
[1732834803660,0.00010961,95723.0,95722.0,0.052226]
[1732834805064,0.00010905,95723.0,95722.0,0.052226]
[1732834805863,0.00410905,95723.0,95722.0,0.052226]
[1732834806360,0.00710905,95723.0,95722.0,0.052226]
[1732834808259,0.05933505,95723.0,95722.0,0.052226]
[1732834810456,0.00710905,95723.0,95722.0,0.052226]
[1732834815660,5e-08,95723.0,95722.0,0.052226]
[1732834816671,5.2e-07,95723.0,95722.0,0.052226]
[1732834817061,5.2e-07,95723.0,95722.0,0.365626]
[1732834817558,5.2e-07,95723.0,95722.0,0.37496912]
[1732834818268,5.2e-07,95723.0,95722.0,0.40616912]
[1732834821968,0.0321,95759.0,95758.0,0.052207]
[1732834822174,0.0317,95763.0,95762.0,0.052205]
[1732834822972,0.03178336,95763.0,95762.0,0.052205]
[1732834823171,8.336e-05,95763.0,95762.0,0.052205]
[1732834823375,8.336e-05,95763.0,95762.0,0.061205]
[1732834825075,8.336e-05,95763.0,95762.0,0.068205]
[1732834827375,8.336e-05,95763.0,95762.0,0.059205]
[1732834827568,8.336e-05,95763.0,95762.0,0.060205]
[1732834827965,8.336e-05,95763.0,95762.0,0.053205]
[1732834828164,8.336e-05,95763.0,95762.0,0.054205]
[1732834832682,8.336e-05,95763.0,95762.0,0.048205]
[1732834834571,8.336e-05,95763.0,95762.0,0.047205]
[1732834835677,8.336e-05,95763.0,95762.0,0.046205]
[1732834846590,0.1,95800.0,95766.0,0.208808]
[1732834846780,0.1,95800.0,95799.0,0.412984]
[1732834847676,0.10007888,95800.0,95799.0,0.406984]
[1732834848482,0.13297888,95800.0,95799.0,0.047184]
[1732834850172,0.13297888,95800.0,95799.0,0.048184]
[1732834850780,0.10007888,95800.0,95799.0,0.048184]
[1732834851895,0.15226288,95800.0,95799.0,0.048184]
[1732834852788,0.052185,95798.0,95797.0,0.363085]
[1732834853987,0.052188,95794.0,95793.0,0.052186]
[1732834855876,0.052192,95789.0,95788.0,0.05219]
[1732834857187,0.054192,95789.0,95788.0,0.05219]
[1732834857392,0.054192,95789.0,95788.0,0.05319]
[1732834857589,0.054192,95789.0,95788.0,0.001]
[1732834858394,0.367392,95789.0,95788.0,0.001]
[1732834858985,0.052196,95778.0,95769.0,0.5472311]
[1732834859187,0.052196,95778.0,95769.0,0.053321]
[1732834859188,0.0329,95777.0,95769.0,0.053321]
[1732834859495,0.3608,95771.0,95759.0,0.1864311]
[1732834859694,0.052203,95767.0,95766.0,0.052201]
[1732834859902,0.052207,95758.0,95757.0,0.3608]
[1732834860202,0.052207,95757.0,95756.0,0.052208]
[1732834860383,0.085107,95757.0,95756.0,0.052208]
[1732834862489,0.086107,95757.0,95756.0,0.052208]
[1732834862807,0.0339,95757.0,95756.0,0.046208]
[1732834863099,0.086107,95757.0,95756.0,0.046208]
[1732834863291,0.085107,95757.0,95756.0,0.046208]
[1732834863594,0.091107,95757.0,95756.0,0.046208]
[1732834864080,0.085107,95757.0,95756.0,0.046208]
[1732834864286,0.090107,95757.0,95756.0,0.046208]
[1732834866188,0.05221,95752.0,95751.0,0.41301]
[1732834866396,0.05231684,95752.0,95751.0,0.41301]
[1732834866796,0.05231684,95752.0,95751.0,0.3608]
[1732834867493,0.05331684,95752.0,95751.0,0.3608]
[1732834867886,0.05431684,95752.0,95751.0,0.3608]
[1732834868487,0.31542684,95752.0,95743.0,0.00011745]
[1732834868692,0.052214,95746.0,95745.0,0.052213]
[1732834869294,0.052214,95746.0,95743.0,0.00011745]
[1732834869295,0.052214,95744.0,95743.0,0.00011745]
[1732834869688,0.052214,95744.0,95743.0,0.00111745]
[1732834870399,0.052214,95744.0,95743.0,0.00011745]
[1732834871496,0.365534,95744.0,95743.0,0.00211745]
[1732834872099,0.052214,95744.0,95743.0,0.00311745]
[1732834872896,0.052212,95749.0,95748.0,0.052211]
[1732834873102,0.052214,95745.0,95744.0,0.052214]
[1732834873892,0.052212,95749.0,95748.0,0.05221]
[1732834875202,0.053212,95749.0,95748.0,0.05221]
[1732834877705,0.054212,95749.0,95748.0,0.04621]
[1732834882202,0.052214,95744.0,95743.0,0.00011745]
[1732834882800,1.552214,95744.0,95743.0,0.00011745]
[1732834883505,0.052214,95744.0,95743.0,0.00011745]
[1732834884097,0.052214,95744.0,95743.0,0.00211745]
[1732834885195,0.052214,95744.0,95743.0,0.05433245]
[1732834886101,0.00010684,95752.0,95751.0,0.05221]
[1732834886303,0.05231684,95752.0,95751.0,0.05221]
[1732834886699,0.00010684,95752.0,95751.0,0.05221]
[1732834887700,0.05431684,95752.0,95751.0,0.05221]
[1732834888098,0.05531684,95752.0,95751.0,0.05221]
[1732834892816,0.05531684,95752.0,95751.0,0.04621]
[1732834893916,0.052213,95748.0,95747.0,0.052212]
[1732834894705,0.052213,95748.0,95743.0,0.00011745]
[1732834894706,0.052214,95744.0,95743.0,0.00011745]
[1732834895906,0.052214,95744.0,95743.0,0.00211745]
[1732834898921,0.06718256,95744.0,95743.0,0.00211745]
[1732834907840,0.052215,95742.0,95741.0,0.35691745]
[1732834909133,0.052215,95742.0,95741.0,0.36091745]
[1732834910635,0.052215,95742.0,95741.0,0.004]
[1732834911228,0.052215,95742.0,95741.0,0.056216]
[1732834911838,0.052215,95742.0,95741.0,0.004]
[1732834913131,0.05231684,95752.0,95741.0,0.004]
[1732834913132,0.00010684,95752.0,95751.0,0.05221]
[1732834913436,0.00010684,95752.0,95751.0,0.41301]
[1732834914434,0.00110684,95752.0,95751.0,0.41301]
[1732834914642,0.052216,95741.0,95739.0,0.052216]
[1732834914940,0.052216,95741.0,95737.0,0.3608]
[1732834914941,0.052218,95738.0,95737.0,0.3608]
[1732834916237,0.052218,95737.0,95733.0,0.05222]
[1732834916740,0.052219,95736.0,95733.0,0.05222]
[1732834917625,0.001,95737.0,95733.0,0.05922]
[1732834917840,0.052219,95735.0,95733.0,0.06222]
[1732834918238,0.052219,95735.0,95734.0,0.05222]
[1732834920228,0.00010684,95752.0,95736.0,0.052219]
[1732834920442,0.00010684,95752.0,95751.0,0.41301]
[1732834921429,0.00010684,95752.0,95745.0,0.0317]
[1732834921430,0.36090684,95752.0,95745.0,0.0317]
[1732834921631,0.052213,95746.0,95745.0,0.0317]
[1732834922036,0.052218,95739.0,95738.0,0.052217]
[1732834922743,0.052218,95739.0,95738.0,0.046217]
[1732834924244,0.052218,95739.0,95738.0,0.048217]
[1732834924648,0.052218,95739.0,95738.0,0.052217]
[1732834925050,0.052218,95739.0,95738.0,0.006]
[1732834927647,0.00010684,95752.0,95738.0,0.68016]
[1732834927843,0.00010684,95752.0,95751.0,0.41301]
[1732834928551,0.05231684,95752.0,95751.0,0.41301]
[1732834930048,0.05231684,95752.0,95751.0,0.3608]
[1732834930373,0.052217,95739.0,95738.0,0.00512]
[1732834930558,0.36390684,95752.0,95730.0,0.0317]
[1732834930745,0.36390684,95752.0,95751.0,0.05221]
[1732834930746,0.00310684,95752.0,95751.0,0.05221]
[1732834931249,0.05531684,95752.0,95751.0,0.05221]
[1732834931653,0.05331684,95752.0,95751.0,0.05221]
[1732834932350,0.05531684,95752.0,95751.0,0.05221]
[1732834932554,0.05431684,95752.0,95751.0,0.05221]
[1732834933442,0.05531684,95752.0,95751.0,0.05221]
[1732834933950,0.41611684,95752.0,95735.0,0.18618197]
[1732834934156,0.052221,95732.0,95720.0,0.36192]
[1732834934354,0.052221,95732.0,95720.0,0.3608]
[1732834934355,0.3608,95732.0,95720.0,0.3608]
[1732834934655,0.05222,95733.0,95732.0,0.052221]
[1732834934954,0.3608,95742.0,95730.0,0.3608]
[1732834935255,0.02400714,95752.0,95738.0,0.3608]
[1732834935449,0.052212,95748.0,95747.0,0.052213]
[1732834935955,0.052215,95744.0,95743.0,0.052215]
[1732834936546,0.00010684,95752.0,95738.0,0.3608]
[1732834936853,0.052214,95746.0,95739.0,0.052217]
[1732834937051,0.052214,95746.0,95745.0,0.052214]
[1732834937551,0.052211,95751.0,95750.0,0.05221]
[1732834937745,0.052211,95751.0,95750.0,0.04621]
[1732834939555,0.052213,95747.0,95746.0,0.3608]
[1732834940058,0.052213,95746.0,95745.0,0.001]
[1732834940355,0.052213,95746.0,95745.0,0.053214]
[1732834940747,0.0327,95750.0,95745.0,0.001]
[1732834940949,0.084911,95750.0,95749.0,0.052212]
[1732834942157,0.052213,95746.0,95745.0,0.001]
[1732834942753,0.052213,95746.0,95724.0,0.3608]
[1732834942754,0.052223,95728.0,95724.0,0.3608]
[1732834943053,0.052223,95728.0,95724.0,0.413025]
[1732834943267,0.052223,95728.0,95725.0,0.052225]
[1732834943760,0.052223,95728.0,95727.0,0.05379098]
[1732834944452,0.052223,95728.0,95727.0,0.05779098]
[1732834944652,0.052223,95728.0,95727.0,0.056224]
[1732834945252,0.053223,95728.0,95727.0,0.065224]
[1732834945457,0.053223,95728.0,95727.0,0.013]
[1732834948959,0.366623,95728.0,95727.0,0.013]
[1732834949260,0.053223,95728.0,95727.0,0.013]
[1732834949449,0.366623,95728.0,95727.0,0.013]
[1732834949760,0.053223,95728.0,95727.0,0.013]
[1732834950659,0.001,95728.0,95727.0,0.013]
[1732834950959,0.001,95728.0,95727.0,0.378624]
[1732834951159,0.0327,95750.0,95727.0,0.3264]
[1732834951362,0.052217,95740.0,95739.0,0.3608]
[1732834951662,0.052217,95740.0,95737.0,0.052218]
[1732834951959,0.052217,95740.0,95739.0,0.052217]
[1732834952648,0.052217,95740.0,95739.0,0.046217]
[1732834953260,0.0327,95750.0,95737.0,0.3608]
[1732834953560,0.0327,95750.0,95739.0,0.001]
[1732834953857,0.052216,95740.0,95739.0,0.001]
[1732834954061,0.413016,95740.0,95739.0,0.003]
[1732834954252,0.413016,95740.0,95713.0,0.361224]
[1732834954253,0.052228,95719.0,95713.0,0.3608]
[1732834955054,0.052228,95719.0,95688.0,0.0209003]
[1732834955055,0.052228,95719.0,95718.0,1e-08]
[1732834955266,0.726428,95719.0,95718.0,1e-08]
[1732834955464,0.727428,95719.0,95703.0,0.3608]
[1732834955668,0.052234,95708.0,95703.0,0.3608]
[1732834956055,0.052234,95708.0,95701.0,0.3608]
[1732834956560,0.05236875,95708.0,95701.0,0.3608]
[1732834956873,0.05236875,95708.0,95707.0,0.00656727]
[1732834957457,0.05236875,95708.0,95707.0,0.00156727]
[1732834957659,0.05236875,95708.0,95707.0,0.00656727]
[1732834957863,0.00013475,95708.0,95707.0,0.00656727]
[1732834958062,0.00013475,95708.0,95707.0,0.05880127]
[1732834958269,0.00113475,95708.0,95707.0,0.06780127]
[1732834958865,0.05336875,95708.0,95707.0,0.06780127]
[1732834959568,0.05336875,95708.0,95707.0,0.01556727]
[1732834959867,0.05336875,95708.0,95707.0,0.06780127]
[1732834960563,0.05336875,95708.0,95707.0,0.01556727]
[1732834964268,0.00113475,95708.0,95698.0,0.3608]
[1732834964458,0.05336875,95708.0,95707.0,0.3608]
[1732834965373,0.052243,95691.0,95690.0,0.3608]
[1732834966566,0.052243,95691.0,95690.0,0.418044]
[1732834966760,0.001,95691.0,95690.0,0.732564]
[1732834966959,0.052235,95707.0,95706.0,0.052234]
[1732834967164,0.052235,95707.0,95706.0,0.413034]
[1732834967563,0.052235,95707.0,95706.0,0.407034]
[1732834967764,0.052235,95707.0,95706.0,0.3608]
[1732834967966,0.052243,95691.0,95690.0,0.36792]
[1732834968170,0.052243,95691.0,95690.0,0.006]
[1732834968563,0.052243,95691.0,95680.0,0.00011856]
[1732834968768,0.052245,95688.0,95680.0,0.36091856]
[1732834968968,0.052245,95688.0,95682.0,0.052248]
[1732834969371,0.052245,95688.0,95680.0,0.36091856]
[1732834970266,0.052245,95688.0,95687.0,0.00756752]
[1732834970462,0.052245,95688.0,95687.0,0.00856752]
[1732834971774,0.052245,95688.0,95687.0,0.00256752]
[1732834971775,0.413045,95688.0,95687.0,0.00256752]
[1732834971987,0.414045,95688.0,95687.0,0.00256752]
[1732834972773,0.415045,95688.0,95687.0,0.00256752]
[1732834973160,0.415045,95688.0,95687.0,0.00156752]
[1732834973471,0.056245,95688.0,95683.0,0.3608]
[1732834973671,0.052247,95684.0,95683.0,0.413047]
[1732834975165,0.053247,95684.0,95683.0,0.413047]
[1732834975568,0.001,95684.0,95683.0,0.413047]
[1732834976274,0.053247,95684.0,95683.0,0.3608]
[1732834976465,0.052249,95681.0,95680.0,0.00011856]
[1732834979276,0.052249,95681.0,95680.0,0.00111856]
[1732834982676,0.3608,95689.0,95678.0,0.05225]
[1732834982677,0.05225,95679.0,95678.0,0.04736856]
[1732834982884,0.052251,95676.0,95675.0,0.476812]
[1732834983074,0.052251,95676.0,95675.0,0.475652]
[1732834983673,0.052251,95676.0,95675.0,0.3608]
[1732834984174,0.052256,95668.0,95667.0,0.052256]
[1732834984379,0.052257,95666.0,95665.0,0.00112]
[1732834984575,0.052252,95675.0,95663.0,0.03346787]
[1732834984576,0.052258,95664.0,95663.0,0.03346787]
[1732834984978,0.052258,95664.0,95663.0,0.08572587]
[1732834986081,0.01545869,95676.0,95667.0,0.052256]
[1732834986285,0.052248,95683.0,95667.0,0.052256]
[1732834986286,0.052256,95668.0,95667.0,0.052256]
[1732834986684,0.02091729,95688.0,95666.0,0.3608]
[1732834986892,0.052251,95677.0,95676.0,0.413051]
[1732834987682,0.052257,95665.0,95664.0,0.23842548]
[1732834987883,0.052253,95673.0,95664.0,0.052257]
[1732834988083,0.052257,95665.0,95664.0,0.052257]
[1732834989185,0.053257,95665.0,95664.0,0.052257]
[1732834991387,0.053257,95665.0,95664.0,0.056257]
[1732834993986,0.052261,95658.0,95657.0,0.00116]
[1732834994180,0.052267,95648.0,95647.0,0.1432939]
[1732834994381,0.052268,95645.0,95633.0,0.31028081]
[1732834994586,0.052268,95645.0,95631.0,0.0648]
[1732834994890,0.365948,95645.0,95631.0,0.0648]
[1732834995396,0.052275,95632.0,95631.0,0.117076]
[1732834996486,0.3608,95633.0,95632.0,0.052275]
[1732834996989,0.413075,95633.0,95632.0,0.052275]
[1732834997692,0.413075,95633.0,95632.0,0.046275]
[1732834997879,0.413075,95633.0,95632.0,0.047275]
[1732834998285,0.414075,95633.0,95632.0,0.047275]
[1732834999889,0.001,95633.0,95632.0,0.047275]
[1732835002194,0.053275,95633.0,95632.0,0.047275]
[1732835003692,0.3608,95645.0,95632.0,0.001]
[1732835003888,0.052272,95640.0,95639.0,0.05227]
[1732835008194,0.052272,95640.0,95639.0,0.05327]
[1732835009801,0.052272,95640.0,95639.0,0.001]
[1732835012588,0.0634,95644.0,95633.0,0.047274]
[1732835012794,0.052274,95634.0,95633.0,0.047274]
[1732835013796,0.052274,95634.0,95633.0,0.048274]
[1732835014399,0.052274,95634.0,95633.0,0.047274]
[1732835014697,0.052274,95634.0,95633.0,0.048274]
[1732835016209,0.413074,95634.0,95633.0,0.001]
[1732835017511,0.052284,95618.0,95615.0,0.0303]
[1732835017701,0.052284,95618.0,95617.0,0.052283]
[1732835018701,0.053284,95618.0,95617.0,0.052283]
[1732835020205,0.053284,95618.0,95617.0,0.053283]
[1732835021003,0.053284,95618.0,95617.0,0.058283]
[1732835021798,0.053284,95618.0,95617.0,0.006]
[1732835023499,0.053284,95618.0,95617.0,0.001]
[1732835023706,0.053284,95618.0,95617.0,0.005]
[1732835023909,0.053284,95618.0,95617.0,0.004]
[1732835024902,0.001,95618.0,95617.0,0.004]
[1732835025211,0.053283,95618.0,95617.0,0.056284]
[1732835026204,0.001,95618.0,95617.0,0.056284]
[1732835026505,0.053283,95618.0,95617.0,0.056284]
[1732835027606,0.053283,95618.0,95617.0,0.050284]
[1732835028108,0.001,95618.0,95612.0,0.00010224]
[1732835028308,0.052286,95613.0,95612.0,0.00010224]
[1732835029002,0.052286,95613.0,95612.0,0.05238824]
[1732835029404,0.052286,95613.0,95612.0,0.05738824]
[1732835029605,0.053286,95613.0,95612.0,0.05838824]
[1732835031807,0.001,95613.0,95612.0,0.05838824]
[1732835032610,0.28721083,95626.0,95623.0,0.05228]
[1732835032611,0.052282,95624.0,95623.0,0.05228]
[1732835033006,0.052282,95624.0,95612.0,0.00610224]
[1732835033007,0.052284,95619.0,95618.0,0.052283]
[1732835033807,0.052286,95613.0,95612.0,0.00110224]
[1732835034114,0.3608,95618.0,95612.0,0.05238824]
[1732835034303,0.001,95619.0,95618.0,0.052283]
[1732835034612,0.053283,95619.0,95618.0,0.052283]
[1732835035306,0.052286,95613.0,95612.0,0.05238824]
[1732835035609,0.001,95619.0,95612.0,0.05238824]
[1732835035610,0.052284,95617.0,95616.0,0.052284]
[1732835035911,0.052286,95613.0,95612.0,0.00210224]
[1732835036306,0.052286,95613.0,95612.0,0.05438824]
[1732835036511,0.053286,95613.0,95612.0,0.05938824]
[1732835037709,0.001,95613.0,95612.0,0.05938824]
[1732835042720,0.001,95613.0,95612.0,0.05338824]
[1732835042923,0.001,95613.0,95612.0,0.05238824]
[1732835043116,0.052282,95621.0,95620.0,0.052282]
[1732835043418,0.07321183,95626.0,95625.0,0.052279]
[1732835044108,0.052284,95617.0,95614.0,0.3608]
[1732835044307,0.052284,95617.0,95616.0,0.052284]
[1732835045912,0.053284,95617.0,95616.0,0.055284]
[1732835047826,0.001,95617.0,95616.0,0.729844]
[1732835048016,0.00156916,95633.0,95632.0,0.052275]
[1732835048219,0.00156916,95633.0,95632.0,0.413075]
[1732835049023,0.05227,95643.0,95633.0,0.052275]
[1732835050848,0.3608,95647.0,95633.0,0.052275]
[1732835051058,0.00156856,95663.0,95633.0,0.052275]
[1732835051059,0.00156856,95663.0,95662.0,0.052259]
[1732835051240,0.01659945,95663.0,95662.0,0.052259]
[1732835051639,0.052262,95658.0,95657.0,0.052262]
[1732835051840,0.06885845,95663.0,95662.0,0.052259]
[1732835052041,0.06893785,95663.0,95662.0,0.052259]
[1732835052355,0.07593785,95663.0,95662.0,0.053259]
[1732835053048,0.00864796,95663.0,95662.0,0.366859]
[1732835053251,0.052251,95677.0,95676.0,0.052251]
[1732835053443,0.01543888,95679.0,95678.0,0.05225]
[1732835053639,0.0311,95688.0,95678.0,0.05225]
[1732835053837,0.05225,95679.0,95678.0,0.05225]
[1732835054350,0.05237245,95679.0,95678.0,0.05225]
[1732835054541,0.00012245,95679.0,95678.0,0.05225]
[1732835054741,0.00212245,95679.0,95678.0,0.41305]
[1732835055050,0.00156809,95699.0,95678.0,0.91856]
[1732835055353,0.00156809,95699.0,95698.0,0.052239]
[1732835055845,0.00156809,95699.0,95685.0,0.052246]
[1732835055846,0.052243,95692.0,95690.0,0.052243]
[1732835056046,0.00013563,95691.0,95690.0,0.052243]
[1732835057647,0.00013563,95691.0,95690.0,0.046243]
[1732835058344,0.00113563,95691.0,95690.0,0.046243]
[1732835059656,0.052249,95680.0,95670.0,0.052254]
[1732835059850,0.3608,95682.0,95678.0,0.00156778]
[1732835060151,0.00113563,95691.0,95690.0,0.052244]
[1732835060152,0.05337863,95691.0,95690.0,0.052244]
[1732835060351,0.052249,95680.0,95678.0,0.00156778]
[1732835060549,0.00113563,95691.0,95690.0,0.052244]
[1732835060754,0.00013563,95691.0,95690.0,0.052244]
[1732835061857,0.00313563,95691.0,95690.0,0.052244]
[1732835062251,0.00213563,95691.0,95690.0,0.052244]
[1732835062457,0.00313563,95691.0,95690.0,0.052244]
[1732835063146,0.00313563,95691.0,95685.0,0.0307]
[1732835063147,0.00313563,95691.0,95689.0,0.052244]
[1732835063554,0.00313563,95691.0,95685.0,0.0307]
[1732835063754,0.00313563,95691.0,95690.0,0.052244]
[1732835063957,0.36236772,95713.0,95690.0,0.052244]
[1732835064151,0.36236772,95713.0,95685.0,0.3307]
[1732835064152,0.052241,95696.0,95685.0,0.0307]
[1732835064456,0.0309,95720.0,95692.0,0.3608]
[1732835064660,0.052228,95719.0,95718.0,0.052228]
[1732835064849,0.05236313,95719.0,95718.0,0.052228]
[1732835065257,0.00013513,95719.0,95718.0,0.052228]
[1732835066159,0.00013513,95719.0,95708.0,0.3608]
[1732835066361,0.00013513,95719.0,95700.0,0.3608]
[1732835066362,0.3608,95713.0,95712.0,0.052232]
[1732835066747,0.413031,95713.0,95712.0,0.052232]
[1732835067663,0.422031,95713.0,95712.0,0.053232]
[1732835068058,0.425031,95713.0,95712.0,0.053232]
[1732835069458,0.425031,95713.0,95712.0,0.001]
[1732835070457,0.3728,95713.0,95712.0,0.001]
[1732835070660,0.425031,95713.0,95712.0,0.001]
[1732835071563,0.012,95713.0,95712.0,0.414032]
[1732835071870,0.00013513,95719.0,95712.0,0.414032]
[1732835071871,0.00013513,95719.0,95718.0,0.052228]
[1732835072968,0.00013513,95719.0,95718.0,0.046228]
[1732835073276,0.00013513,95719.0,95712.0,0.3626]
[1732835073458,0.00013513,95719.0,95718.0,0.052228]
[1732835073772,0.00013513,95719.0,95718.0,0.054228]
[1732835073773,0.00813513,95719.0,95718.0,0.054228]
[1732835074472,0.00813513,95719.0,95718.0,0.053228]
[1732835074771,0.00813513,95719.0,95718.0,0.052228]
[1732835074974,0.06036313,95719.0,95718.0,0.052228]
[1732835075474,0.05236313,95719.0,95718.0,0.052228]
[1732835075863,0.00013513,95719.0,95718.0,0.052228]
[1732835076061,0.00156751,95733.0,95732.0,0.052221]